[Event "Schack-SM 2024: Sverigemastarklassen"]
[Site "Fortnox Arena, Hejaregatan 5, Vaxjo, Sweden"]
[Date "2024.07.07"]
[Round "9.1"]
[White "Pantzar, Milton"]
[Black "Ostlund, Joar"]
[Result "1-0"]
[TimeControl "90 minutes for 40 moves + 30 minutes for the rest of the game + 30 seconds per move from move one."]
[WhiteTitle "IM"]
[BlackTitle "FM"]
[WhiteElo "2480"]
[BlackElo "2334"]

1. Nf3 {[%clk 01:30:55]} {[%emt 00:00:03]} d5 {[%clk 01:30:29]} {[%emt
00:00:32]} 2. g3 {[%clk 01:31:10]} {[%emt 00:00:15]} Bg4 {[%clk 01:30:24]}
{[%emt 00:00:35]} 3. Bg2 {[%clk 01:31:16]} {[%emt 00:00:25]} Nd7 {[%clk
01:30:44]} {[%emt 00:00:10]} 4. O-O {[%clk 01:30:58]} {[%emt 00:00:47]} c6
{[%clk 01:31:00]} {[%emt 00:00:15]} 5. h3 {[%clk 01:30:52]} {[%emt 00:00:36]}
Bxf3 {[%clk 01:31:08]} {[%emt 00:00:22]} 6. Bxf3 {[%clk 01:30:59]} {[%emt
00:00:26]} Ngf6 {[%clk 01:30:07]} {[%emt 00:01:27]} 7. d3 {[%clk 01:30:51]}
{[%emt 00:00:39]} e6 {[%clk 01:28:22]} {[%emt 00:02:16]} 8. e4 {[%clk
01:30:07]} {[%emt 00:01:14]} Be7 {[%clk 01:24:53]} {[%emt 00:03:58]} 9. Qe2
{[%clk 01:27:49]} {[%emt 00:02:48]} O-O {[%clk 01:21:39]} {[%emt 00:03:43]} 10.
e5 {[%clk 01:23:30]} {[%emt 00:04:51]} Ne8 {[%clk 01:21:47]} {[%emt 00:00:21]}
11. Bg2 {[%clk 01:23:10]} {[%emt 00:00:50]} Nc7 {[%clk 01:18:16]} {[%emt
00:04:01]} 12. Nd2 {[%clk 01:17:51]} {[%emt 00:05:49]} a5 {[%clk 01:09:34]}
{[%emt 00:09:13]} 13. f4 {[%clk 01:11:08]} {[%emt 00:07:14]} a4 {[%clk
01:06:58]} {[%emt 00:03:07]} 14. a3 {[%clk 01:11:07]} {[%emt 00:00:30]} b5
{[%clk 01:03:26]} {[%emt 00:04:02]} 15. Nf3 {[%clk 01:06:41]} {[%emt 00:04:56]}
c5 {[%clk 00:55:43]} {[%emt 00:08:13]} 16. Kh1 {[%clk 01:04:30]} {[%emt
00:02:41]} Nb6 {[%clk 00:50:35]} {[%emt 00:05:38]} 17. g4 {[%clk 01:02:50]}
{[%emt 00:02:09]} Qd7 {[%clk 00:48:03]} {[%emt 00:03:03]} 18. h4 {[%clk
00:57:59]} {[%emt 00:05:20]} Rfb8 {[%clk 00:31:38]} {[%emt 00:16:55]} 19. f5
{[%clk 00:56:15]} {[%emt 00:02:14]} exf5 {[%clk 00:24:42]} {[%emt 00:07:27]} 20.
gxf5 {[%clk 00:55:52]} {[%emt 00:00:53]} Qxf5 {[%clk 00:23:44]} {[%emt
00:01:27]} 21. Ng5 {[%clk 00:52:19]} {[%emt 00:04:04]} Qg6 {[%clk 00:23:42]}
{[%emt 00:00:32]} 22. h5 {[%emt 00:11:19]} Qc6 {[%clk 00:23:59]} {[%emt
00:00:13]} 23. Qg4 {[%clk 00:27:21]} {[%emt 00:14:38]} Rf8 {[%clk 00:20:56]}
{[%emt 00:03:32]} 24. c4 {[%clk 00:25:21]} {[%emt 00:02:32]} Rae8 {[%clk
00:18:09]} {[%emt 00:03:16]} 25. cxd5 {[%clk 00:20:50]} {[%emt 00:05:01]} Nbxd5
{[%clk 00:18:04]} {[%emt 00:00:34]} 26. Be4 {[%clk 00:17:18]} {[%emt 00:04:03]}
Bxg5 {[%clk 00:14:01]} {[%emt 00:04:34]} 27. Qxg5 {[%clk 00:15:58]} {[%emt
00:01:48]} Qe6 {[%clk 00:13:26]} {[%emt 00:01:08]} 28. Bd2 {[%clk 00:14:07]}
{[%emt 00:02:20]} Qh3+ {[%clk 00:11:06]} {[%emt 00:02:51]} 29. Kg1 {[%clk
00:14:32]} {[%emt 00:00:04]} Ne6 {[%clk 00:05:58]} {[%emt 00:05:39]} 30. Qg2
{[%clk 00:14:42]} {[%emt 00:00:19]} Qxg2+ {[%clk 00:06:19]} {[%emt 00:00:09]}
31. Kxg2 {[%clk 00:14:59]} {[%emt 00:00:11]} Rd8 {[%clk 00:06:15]} {[%emt
00:00:35]} 32. h6 {[%clk 00:15:08]} {[%emt 00:00:21]} g6 {[%clk 00:06:13]}
{[%emt 00:00:33]} 33. Rac1 {[%clk 00:10:24]} {[%emt 00:05:14]} f5 {[%clk
00:05:27]} {[%emt 00:01:17]} 34. exf6 {[%clk 00:10:44]} {[%emt 00:00:09]} Nxf6
{[%clk 00:05:51]} {[%emt 00:00:07]} 35. Bc6 {[%clk 00:09:18]} {[%emt 00:01:56]}
Rxd3 {[%clk 00:05:13]} {[%emt 00:01:08]} 36. Bc3 {[%clk 00:09:42]} {[%emt
00:00:06]} Nd5 {[%clk 00:01:46]} {[%emt 00:03:56]} 37. Rxf8+ {[%clk 00:08:17]}
{[%emt 00:01:57]} Kxf8 {[%clk 00:02:13]} {[%emt 00:00:03]} 38. Bxb5 {[%clk
00:08:38]} Nef4+ {[%clk 00:02:13]} 39. Kf2 {[%clk 00:08:38]} Nxc3 {[%clk
00:02:13]} 40. Rxc3 {[%clk 00:08:38]} Rd2+ {[%clk 00:02:13]} 41. Kf3 {[%clk
00:08:38]} Ne6 {[%clk 00:02:13]} 42. Bxa4 {[%clk 00:08:38]} Rxb2 {[%clk
00:27:31]} {[%emt 00:15:07]} 43. Ke4 {[%clk 00:32:52]} Ke7 {[%clk 00:21:06]}
{[%emt 00:07:24]} 44. Kd5 {[%clk 00:31:45]} Rd2+ {[%clk 00:17:28]} {[%emt
00:05:44]} 45. Kc6 {[%clk 00:31:24]} {[%emt 00:00:52]} Rd6+ {[%clk 00:17:53]}
{[%emt 00:00:06]} 46. Kb7 {[%clk 00:31:23]} {[%emt 00:00:30]} Rd4 {[%clk
00:15:06]} {[%emt 00:03:18]} 47. Bb5 {[%clk 00:30:20]} {[%emt 00:01:32]} Kd6
{[%clk 00:14:48]} {[%emt 00:00:48]} 48. Bc4 {[%clk 00:25:43]} {[%emt 00:05:07]}
Nf4 {[%clk 00:04:42]} {[%emt 00:10:36]} 49. Bg8 {[%clk 00:10:10]} {[%emt
00:16:03]} Re4 {[%clk 00:04:35]} {[%emt 00:00:37]} 50. Rc2 {[%clk 00:09:13]}
{[%emt 00:01:28]} Re7+ {[%clk 00:04:11]} {[%emt 00:00:53]} 51. Kb6 {[%clk
00:09:27]} {[%emt 00:00:16]} Nd5+ {[%clk 00:01:27]} {[%emt 00:03:13]} 52. Bxd5
{[%clk 00:09:49]} {[%emt 00:00:10]} Kxd5 {[%clk 00:01:50]} {[%emt 00:00:07]} 53.
Rxc5+ {[%clk 00:10:08]} {[%emt 00:00:11]} Kd6 {[%clk 00:00:48]} {[%emt
00:01:34]} 54. a4 {[%clk 00:07:51]} {[%emt 00:02:46]} Re4 {[%clk 00:00:39]}
{[%emt 00:00:37]} 55. Rc6 {[%clk 00:05:13]} {[%emt 00:03:09]} Kd7 {[%clk
00:00:50]} {[%emt 00:00:18]} 56. Rc7+ {[%clk 00:05:01]} {[%emt 00:00:43]} Kd6
{[%clk 00:01:10]} {[%emt 00:00:10]} 57. Ra7 {[%clk 00:04:07]} {[%emt 00:01:25]}
Rh4 {[%clk 00:00:32]} {[%emt 00:01:07]} 58. Rxh7 {[%clk 00:03:01]} {[%emt
00:01:36]} Rxa4 {[%clk 00:01:00]} {[%emt 00:00:03]} 59. Rh8 {[%clk 00:02:43]}
{[%emt 00:00:48]} Rb4+ {[%clk 00:00:51]} {[%emt 00:00:39]} 60. Ka5 {[%clk
00:02:14]} {[%emt 00:00:59]} Rh4 {[%clk 00:00:33]} {[%emt 00:00:47]} 61. h7
{[%clk 00:02:34]} {[%emt 00:00:10]} g5 {[%clk 00:00:34]} {[%emt 00:00:29]} 62.
Rd8+ {[%clk 00:02:45]} {[%emt 00:00:17]} Ke5 {[%clk 00:00:57]} {[%emt
00:00:08]} 63. h8=Q {[%clk 00:03:07]} {[%emt 00:00:10]} Rxh8 {[%clk 00:01:20]}
{[%emt 00:00:06]} 64. Rxh8 {[%clk 00:03:33]} {[%emt 00:00:04]} g4 {[%clk
00:01:35]} {[%emt 00:00:15]} 65. Kb4 {[%clk 00:03:01]} {[%emt 00:01:03]} Ke4
{[%clk 00:00:35]} {[%emt 00:01:30]} 66. Kc3 {[%clk 00:02:48]} {[%emt 00:00:43]}
Kf3 {[%clk 00:00:32]} {[%emt 00:00:33]} 67. Kd2 {[%clk 00:03:06]} {[%emt
00:00:11]} g3 {[%clk 00:00:33]} {[%emt 00:00:28]} 68. Ke1 {[%clk 00:03:20]}
{[%emt 00:00:15]} Kg2 {[%clk 00:00:43]} {[%emt 00:00:21]} 69. Ke2 {[%clk
00:03:33]} {[%emt 00:00:16]} Kg1 {[%clk 00:01:10]} {[%emt 00:00:03]} 70. Kf3
{[%clk 00:03:59]} {[%emt 00:00:05]} g2 {[%clk 00:01:32]} {[%emt 00:00:09]} 71.
Kg3 {[%clk 00:04:21]} {[%emt 00:00:07]} Kf1 {[%clk 00:01:52]} {[%emt 00:00:11]}
72. Rf8+ {[%clk 00:04:47]} {[%emt 00:00:03]} Kg1 {[%clk 00:02:13]} {[%emt
00:00:08]} 73. Ra8 {[%clk 00:05:10]} {[%emt 00:00:07]} 1-0

[Event "Schack-SM 2024: Sverigemastarklassen"]
[Site "Fortnox Arena, Hejaregatan 5, Vaxjo, Sweden"]
[Date "2024.07.07"]
[Round "9.2"]
[White "Blomqvist, Erik"]
[Black "Galperin, Platon"]
[Result "1/2-1/2"]
[TimeControl "90 minutes for 40 moves + 30 minutes for the rest of the game + 30 seconds per move from move one."]
[WhiteTitle "GM"]
[BlackTitle "GM"]
[WhiteElo "2527"]
[BlackElo "2551"]

1. e4 {[%clk 01:30:56]} {[%emt 00:00:04]} e6 {[%clk 01:28:42]} {[%emt
00:02:18]} 2. d4 {[%clk 01:31:11]} {[%emt 00:00:11]} d5 {[%clk 01:29:11]}
{[%emt 00:00:05]} 3. Nc3 {[%clk 01:30:52]} {[%emt 00:00:49]} Nf6 {[%clk
01:29:29]} {[%emt 00:00:11]} 4. Bg5 {[%clk 01:31:00]} {[%emt 00:00:22]} dxe4
{[%clk 01:29:31]} {[%emt 00:00:29]} 5. Nxe4 {[%clk 01:31:21]} {[%emt 00:00:09]}
Nbd7 {[%clk 01:29:59]} {[%emt 00:00:03]} 6. Nf3 {[%clk 01:29:52]} {[%emt
00:01:58]} Be7 {[%clk 01:30:24]} {[%emt 00:00:05]} 7. Nxf6+ {[%clk 01:28:05]}
{[%emt 00:02:18]} Bxf6 {[%clk 01:30:16]} {[%emt 00:00:39]} 8. Bxf6 {[%clk
01:28:05]} {[%emt 00:00:29]} Qxf6 {[%clk 01:30:38]} {[%emt 00:00:08]} 9. Qd3
{[%clk 01:24:34]} {[%emt 00:04:01]} c5 {[%clk 01:26:42]} {[%emt 00:04:27]} 10.
O-O-O {[%clk 01:23:11]} {[%emt 00:01:53]} cxd4 {[%clk 01:26:37]} {[%emt
00:00:35]} 11. Qxd4 {[%clk 01:23:22]} {[%emt 00:00:17]} Qxd4 {[%clk 01:27:02]}
{[%emt 00:00:05]} 12. Rxd4 {[%clk 01:23:15]} {[%emt 00:00:38]} Ke7 {[%clk
01:27:12]} {[%emt 00:00:18]} 13. Be2 {[%clk 01:20:55]} {[%emt 00:02:51]} Nb8
{[%clk 01:07:41]} {[%emt 00:20:02]} 14. Rhd1 {[%clk 01:10:33]} {[%emt
00:10:52]} Nc6 {[%clk 01:07:30]} {[%emt 00:00:40]} 15. R4d2 {[%clk 01:03:15]}
{[%emt 00:07:48]} Rd8 {[%clk 01:04:41]} {[%emt 00:03:20]} 16. Ne5 {[%clk
01:02:26]} {[%emt 00:01:18]} Rxd2 {[%clk 01:04:53]} {[%emt 00:00:19]} 17. Nxc6+
{[%clk 01:02:49]} {[%emt 00:00:07]} bxc6 {[%clk 01:05:20]} {[%emt 00:00:03]} 18.
Kxd2 {[%clk 01:03:04]} {[%emt 00:00:16]} c5 {[%clk 01:01:53]} {[%emt 00:03:57]}
19. Bf3 {[%clk 01:01:34]} {[%emt 00:01:58]} Rb8 {[%clk 01:02:19]} {[%emt
00:00:06]} 20. Kc3 {[%clk 01:01:44]} {[%emt 00:00:20]} Rb6 {[%clk 00:24:29]}
{[%emt 00:38:19]} 21. a3 {[%clk 00:57:14]} {[%emt 00:05:00]} a5 {[%clk
00:20:44]} {[%emt 00:04:15]} 22. b3 {[%clk 00:49:02]} {[%emt 00:08:41]} Ba6
{[%clk 00:20:38]} {[%emt 00:00:38]} 23. Re1 {[%clk 00:48:02]} {[%emt 00:01:30]}
f6 {[%clk 00:14:33]} {[%emt 00:06:34]} 24. Re4 {[%clk 00:36:40]} {[%emt
00:11:52]} Bb5 {[%clk 00:14:31]} {[%emt 00:00:33]} 25. Be2 {[%clk 00:36:15]}
{[%emt 00:00:55]} Bc6 {[%clk 00:14:14]} {[%emt 00:00:46]} 26. Re3 {[%clk
00:34:45]} {[%emt 00:02:01]} Bd5 {[%clk 00:13:29]} {[%emt 00:01:15]} 27. h4
{[%clk 00:34:05]} {[%emt 00:01:11]} g6 {[%clk 00:11:37]} {[%emt 00:02:22]} 28.
g4 {[%clk 00:32:16]} {[%emt 00:02:19]} Rb8 {[%clk 00:10:16]} {[%emt 00:01:49]}
29. Bd3 {[%clk 00:31:30]} {[%emt 00:01:18]} Kd6 {[%clk 00:07:46]} {[%emt
00:03:00]} 30. h5 {[%clk 00:28:24]} {[%emt 00:03:36]} Rg8 {[%clk 00:05:07]}
{[%emt 00:03:07]} 31. h6 {[%clk 00:26:22]} {[%emt 00:02:33]} f5 {[%clk
00:04:55]} {[%emt 00:00:42]} 32. Rg3 {[%clk 00:16:45]} {[%emt 00:10:06]} f4
{[%clk 00:03:23]} {[%emt 00:02:03]} 33. Rh3 {[%clk 00:15:00]} {[%emt 00:02:14]}
Bg2 {[%clk 00:01:32]} {[%emt 00:02:20]} 34. Rh2 {[%clk 00:11:46]} {[%emt
00:03:46]} Bf3 {[%clk 00:01:55]} {[%emt 00:00:07]} 35. Rh3 {[%clk 00:11:44]}
{[%emt 00:00:31]} Bg2 {[%clk 00:02:23]} {[%emt 00:00:03]} 36. Rh2 {[%clk
00:11:55]} {[%emt 00:00:19]} Bf3 {[%clk 00:02:19]} {[%emt 00:00:35]} 37. Rh3
{[%clk 00:12:17]} {[%emt 00:00:06]} Bg2 {[%clk 00:02:33]} {[%emt 00:00:17]} 38.
Rh2 {[%emt 00:00:10]} 1/2-1/2

[Event "Schack-SM 2024: Sverigemastarklassen"]
[Site "Fortnox Arena, Hejaregatan 5, Vaxjo, Sweden"]
[Date "2024.07.07"]
[Round "9.4"]
[White "Seo, Jung Min"]
[Black "Hillarp Persson, Tiger"]
[Result "1-0"]
[TimeControl "90 minutes for 40 moves + 30 minutes for the rest of the game + 30 seconds per move from move one."]
[WhiteTitle "IM"]
[BlackTitle "GM"]
[WhiteElo "2442"]
[BlackElo "2455"]

1. e4 {[%clk 01:30:44]} {[%emt 00:00:16]} e6 {[%clk 01:29:43]} {[%emt
00:01:16]} 2. d4 {[%clk 01:30:45]} {[%emt 00:00:30]} d5 {[%clk 01:30:01]}
{[%emt 00:00:11]} 3. Nc3 {[%clk 01:29:05]} {[%emt 00:02:10]} h6 {[%clk
01:29:41]} {[%emt 00:00:50]} 4. Bd3 {[%clk 01:18:58]} {[%emt 00:10:35]} c5
{[%clk 01:20:39]} {[%emt 00:09:31]} 5. exd5 {[%clk 01:14:47]} {[%emt 00:04:42]}
exd5 {[%clk 01:13:00]} {[%emt 00:08:09]} 6. dxc5 {[%clk 01:12:09]} {[%emt
00:03:07]} Nc6 {[%clk 01:13:15]} {[%emt 00:00:15]} 7. Bb5 {[%clk 01:05:14]}
{[%emt 00:07:25]} Bxc5 {[%clk 01:07:42]} {[%emt 00:06:03]} 8. Qxd5 {[%clk
01:04:42]} {[%emt 00:01:02]} Qb6 {[%clk 00:49:34]} {[%emt 00:18:39]} 9. Ne4
{[%clk 00:57:34]} {[%emt 00:07:38]} Bb4+ {[%clk 00:45:52]} {[%emt 00:04:13]} 10.
c3 {[%clk 00:54:51]} {[%emt 00:03:12]} Nge7 {[%clk 00:43:34]} {[%emt 00:02:48]}
11. Qc4 {[%clk 00:34:56]} {[%emt 00:20:25]} f5 {[%clk 00:43:31]} {[%emt
00:00:33]} 12. Be3 {[%clk 00:31:06]} {[%emt 00:04:19]} Qc7 {[%clk 00:43:26]}
{[%emt 00:00:35]} 13. Qxb4 {[%clk 00:28:44]} {[%emt 00:02:51]} fxe4 {[%clk
00:43:50]} {[%emt 00:00:07]} 14. Qxe4 {[%clk 00:28:48]} {[%emt 00:00:26]} Bf5
{[%clk 00:44:12]} {[%emt 00:00:09]} 15. Qa4 {[%clk 00:24:28]} {[%emt 00:04:49]}
O-O {[%clk 00:41:37]} {[%emt 00:03:04]} 16. Nf3 {[%clk 00:21:55]} {[%emt
00:03:03]} a6 {[%clk 00:38:21]} {[%emt 00:03:48]} 17. Qc4+ {[%clk 00:16:37]}
{[%emt 00:05:47]} Kh8 {[%clk 00:38:37]} {[%emt 00:00:15]} 18. Bxc6 {[%clk
00:17:05]} {[%emt 00:00:03]} Nxc6 {[%clk 00:37:08]} {[%emt 00:01:58]} 19. Nd4
{[%clk 00:12:58]} {[%emt 00:04:36]} Rae8 {[%clk 00:37:24]} {[%emt 00:00:13]} 20.
Nxf5 {[%clk 00:13:04]} {[%emt 00:00:25]} Rxf5 {[%clk 00:37:46]} {[%emt
00:00:09]} 21. O-O {[%clk 00:12:27]} {[%emt 00:01:07]} b5 {[%clk 00:37:56]}
{[%emt 00:00:18]} 22. Qh4 {[%clk 00:11:57]} {[%emt 00:00:59]} Qf7 {[%clk
00:37:19]} {[%emt 00:01:08]} 23. b3 {[%clk 00:10:07]} {[%emt 00:02:20]} Re6
{[%clk 00:35:18]} {[%emt 00:02:31]} 24. Rae1 {[%clk 00:05:02]} {[%emt
00:05:36]} Rh5 {[%clk 00:16:16]} {[%emt 00:19:31]} 25. Qg4 {[%clk 00:05:22]}
{[%emt 00:00:08]} Ne5 {[%clk 00:15:10]} {[%emt 00:01:38]} 26. Qe2 {[%clk
00:03:34]} {[%emt 00:02:17]} Rg6 {[%clk 00:12:12]} {[%emt 00:03:30]} 27. f3
{[%clk 00:03:50]} {[%emt 00:00:13]} Qf5 {[%clk 00:11:27]} {[%emt 00:01:15]} 28.
Rd1 {[%clk 00:01:47]} {[%emt 00:02:34]} Rh4 {[%clk 00:07:09]} {[%emt 00:04:47]}
29. Rd4 {[%clk 00:01:54]} {[%emt 00:00:23]} Rxd4 {[%clk 00:07:02]} {[%emt
00:00:37]} 30. Bxd4 {[%clk 00:01:52]} {[%emt 00:00:33]} Nd3 {[%clk 00:07:17]}
{[%emt 00:00:15]} 31. Qe4 {[%clk 00:01:19]} {[%emt 00:01:03]} Qg5 {[%clk
00:07:42]} {[%emt 00:00:06]} 32. f4 {[%clk 00:00:44]} {[%emt 00:01:04]} Qg4
{[%clk 00:08:02]} {[%emt 00:00:11]} 33. h3 {[%clk 00:00:55]} {[%emt 00:00:19]}
Qg3 {[%clk 00:08:17]} {[%emt 00:00:14]} 34. f5 {[%clk 00:01:03]} {[%emt
00:00:21]} 1-0

[Event "Schack-SM 2024: Sverigemastarklassen"]
[Site "Fortnox Arena, Hejaregatan 5, Vaxjo, Sweden"]
[Date "2024.07.07"]
[Round "9.5"]
[White "Semcesen, Daniel"]
[Black "Hector, Jonny"]
[Result "0-1"]
[TimeControl "90 minutes for 40 moves + 30 minutes for the rest of the game + 30 seconds per move from move one."]
[WhiteTitle "GM"]
[BlackTitle "GM"]
[WhiteElo "2451"]
[BlackElo "2410"]

1. Nf3 {[%clk 01:30:31]} {[%emt 00:00:30]} d5 {[%clk 01:30:50]} {[%emt
00:00:09]} 2. g3 {[%clk 01:29:47]} {[%emt 00:01:14]} Nc6 {[%clk 01:30:29]}
{[%emt 00:00:49]} 3. d4 {[%clk 01:29:29]} {[%emt 00:00:49]} Bf5 {[%clk
01:30:51]} {[%emt 00:00:07]} 4. Bg2 {[%clk 01:29:32]} {[%emt 00:00:27]} Nb4
{[%clk 01:30:14]} {[%emt 00:01:07]} 5. Na3 {[%clk 01:29:34]} {[%emt 00:00:29]}
e6 {[%clk 01:30:03]} {[%emt 00:00:40]} 6. O-O {[%clk 01:28:04]} {[%emt
00:02:01]} h5 {[%clk 01:29:51]} {[%emt 00:00:43]} 7. c3 {[%clk 01:19:04]}
{[%emt 00:09:31]} Nc6 {[%clk 01:30:05]} {[%emt 00:00:15]} 8. Qb3 {[%clk
01:17:28]} {[%emt 00:02:05]} Bxa3 {[%clk 01:27:52]} {[%emt 00:02:42]} 9. Qxa3
{[%clk 01:15:28]} {[%emt 00:02:32]} Be4 {[%clk 01:28:03]} {[%emt 00:00:17]} 10.
Re1 {[%clk 00:45:56]} {[%emt 00:30:03]} Nge7 {[%clk 01:23:07]} {[%emt
00:05:26]} 11. Qb3 {[%clk 00:45:14]} {[%emt 00:01:11]} b6 {[%clk 01:18:04]}
{[%emt 00:05:32]} 12. Bf1 {[%clk 00:33:28]} {[%emt 00:12:17]} Bxf3 {[%clk
01:12:45]} {[%emt 00:05:49]} 13. exf3 {[%clk 00:33:44]} {[%emt 00:00:14]} h4
{[%clk 01:08:28]} {[%emt 00:04:47]} 14. Bd2 {[%clk 00:30:53]} {[%emt 00:03:22]}
Kf8 {[%clk 01:05:39]} {[%emt 00:03:17]} 15. Re2 {[%clk 00:30:17]} {[%emt
00:01:07]} Na5 {[%clk 00:53:31]} {[%emt 00:12:38]} 16. Qc2 {[%clk 00:29:48]}
{[%emt 00:00:59]} c5 {[%clk 00:53:07]} {[%emt 00:00:53]} 17. Be3 {[%clk
00:28:36]} {[%emt 00:01:43]} cxd4 {[%clk 00:48:09]} {[%emt 00:05:29]} 18. Bxd4
{[%clk 00:28:31]} {[%emt 00:00:35]} Nac6 {[%clk 00:47:32]} {[%emt 00:01:07]} 19.
Rd1 {[%clk 00:27:39]} {[%emt 00:01:22]} Nxd4 {[%clk 00:43:36]} {[%emt
00:04:26]} 20. Rxd4 {[%clk 00:25:53]} {[%emt 00:02:16]} Rc8 {[%clk 00:42:37]}
{[%emt 00:01:29]} 21. Qa4 {[%clk 00:25:01]} {[%emt 00:01:22]} Nf5 {[%clk
00:37:22]} {[%emt 00:05:44]} 22. Rd1 {[%clk 00:23:19]} {[%emt 00:02:14]} Qc7
{[%clk 00:34:12]} {[%emt 00:03:39]} 23. Qb4+ {[%clk 00:16:52]} {[%emt
00:06:57]} Kg8 {[%clk 00:30:55]} {[%emt 00:03:46]} 24. Bg2 {[%clk 00:14:59]}
{[%emt 00:02:25]} a5 {[%clk 00:29:34]} {[%emt 00:01:50]} 25. Qg4 {[%clk
00:12:48]} {[%emt 00:02:41]} Qc4 {[%clk 00:24:54]} {[%emt 00:05:10]} 26. f4
{[%clk 00:11:42]} {[%emt 00:01:37]} g6 {[%clk 00:24:01]} {[%emt 00:01:22]} 27.
a3 {[%clk 00:11:39]} {[%emt 00:00:33]} Kg7 {[%clk 00:23:16]} {[%emt 00:01:16]}
28. Re5 {[%clk 00:11:11]} {[%emt 00:00:59]} hxg3 {[%clk 00:18:53]} {[%emt
00:04:52]} 29. hxg3 {[%clk 00:11:21]} {[%emt 00:00:20]} Rhd8 {[%clk 00:18:21]}
{[%emt 00:01:01]} 30. Qe2 {[%clk 00:07:22]} {[%emt 00:04:30]} b5 {[%clk
00:12:34]} {[%emt 00:06:15]} 31. Bf1 {[%clk 00:06:34]} {[%emt 00:01:18]} Qxe2
{[%clk 00:12:34]} {[%emt 00:00:30]} 32. Rxe2 {[%clk 00:06:24]} {[%emt
00:00:40]} Rc5 {[%clk 00:12:03]} {[%emt 00:01:00]} 33. Red2 {[%clk 00:06:18]}
{[%emt 00:00:38]} Rb8 {[%clk 00:11:54]} {[%emt 00:00:38]} 34. Bd3 {[%clk
00:04:33]} {[%emt 00:02:16]} Nd6 {[%clk 00:11:20]} {[%emt 00:01:02]} 35. Re1
{[%clk 00:03:41]} {[%emt 00:01:23]} Kf6 {[%clk 00:05:40]} {[%emt 00:06:09]} 36.
Kg2 {[%clk 00:04:00]} {[%emt 00:00:11]} b4 {[%clk 00:04:51]} {[%emt 00:01:19]}
37. axb4 {[%clk 00:02:27]} {[%emt 00:02:05]} axb4 {[%clk 00:05:15]} {[%emt
00:00:04]} 38. cxb4 {[%clk 00:02:50]} {[%emt 00:00:09]} Rxb4 {[%clk 00:05:32]}
{[%emt 00:00:12]} 39. Ree2 {[%clk 00:03:00]} {[%emt 00:00:21]} Rb3 {[%clk
00:04:16]} {[%emt 00:01:45]} 40. Kf1 {[%clk 00:03:00]} {[%emt 00:00:31]} Rc6
{[%clk 00:03:23]} {[%emt 00:01:23]} 41. Ke1 {[%clk 00:02:43]} {[%emt 00:00:47]}
Rc1+ {[%clk 00:03:43]} {[%emt 00:00:10]} 0-1